[Event "Rapid Shavuot-A 2023"]
[Site "Ramat Gan"]
[Date "2023.05.25"]
[Round "3.12"]
[White "Gamayev, Oleg"]
[Black "Azoulay, Yehonatan"]
[Result "1/2-1/2"]
[ECO "E61"]
[WhiteElo "2174"]
[BlackElo "1813"]
[Annotator "TA"]
[PlyCount "130"]
[EventDate "2023.05.19"]
[EventType "swiss"]
[EventCountry "ISR"]
[SourceTitle "playchess.com"]
[Source "ChessBase"]
[SourceQuality "1"]
[TimeControl "900+5"]

{[%evp 14,129,67,1,10,6,35,-25,39,31,71,51,48,6,7,6,0,-168,-149,-255,-256,-238,-250,-266,-235,-257,-262,-255,-203,-206,-215,-179,-175,-178,-124,-106,-122,-116,-106,-123,-134,-178,-181,-178,-168,-158,-159,-142,-142,-214,-165,-250,-250,-247,-189,-210,-210,-214,-212,-233,-233,-239,-238,-260,-260,-289,-274,-332,-307,-347,-344,-354,-332,-361,-359,-417,-320,-371,-292,-420,-415,-548,-355,-351,-322,-297,-67,-139,-158,-131,-71,-71,-71,-71,-71,-71,-71,-71,-71,-71,-71,-71,-71,-71,-71,-71,-71,-71,-67,-69,-62,-62,-55,-55,-55,-50,0,0]} 1. d4 {[%emt 0:00:04]} Nf6 {[%emt 0:00:04]} 2. Nf3 {[%emt 0:00:01]} g6 {[%emt 0:00:03]} 3. c4 {[%emt 0:00:06]} c5 {[%emt 0:00:01]} 4. e3 {[%emt 0:00:03]} Bg7 {[%emt 0:00:01]} 5. Nc3 {[%emt 0:00:01]} O-O {[%emt 0:00:02]} 6. Be2 {[%emt 0:00:09]} b6 {[%emt 0:00:10]} 7. O-O {[%emt 0:00:10]} Bb7 {[%emt 0:00:01]} 8. b3 {[%emt 0:00:24]} (8. d5 $14) 8... d5 {[%emt 0:00:27] E61: King's Indian: Early deviations for White, including Smyslov System.} 9. Ba3 {[%emt 0:00:45]} Ne4 {[%emt 0:00:53] [#]} 10. Rc1 $146 {[%emt 0:00:52]} (10. Nxd5 $14 e6 11. Nf4) ({Predecessor:} 10. Nxd5 Bxd5 11. cxd5 Nc3 12. Qd2 Nxe2+ 13. Qxe2 Qxd5 14. Rfd1 Qb7 15. Rac1 cxd4 16. exd4 {½-½ Leutwyler,M (2190)-Johansson,A (2029) Politiken Cup 34th 2012 (5)}) 10... e6 {[%emt 0:01:42]} (10... Nxc3 $11 11. Rxc3 Nc6) 11. cxd5 $14 {[%emt 0:01:07]} exd5 {[%emt 0:00:05]} 12. Na4 {[%emt 0:00:11][%cal Rd4c5]} (12. Nxe4 $5 dxe4 13. Nd2 $14) 12... Bc6 {[%emt 0:03:44]} 13. dxc5 {[%emt 0:02:24] And now Nd4 would win.} b5 $1 {[%emt 0:00:09] [#]} 14. b4 $1 {[%emt 0:01:06][%cal Of3d4]} bxa4 {[%emt 0:00:11]} 15. Nd4 $2 {[%emt 0:03:10]} (15. b5 $11) 15... a6 $1 $19 {[%emt 0:01:27]} 16. Nxc6 {[%emt 0:00:43]} (16. Bb2 $17 {was called for.}) 16... Nxc6 {[%emt 0:00:04]} 17. Qxa4 {[%emt 0:00:03]} Qc8 {[%emt 0:00:23]} 18. Rc2 {[%emt 0:00:29]} Nc3 {[%emt 0:00:48]} 19. Qb3 {[%emt 0:00:07]} Nxe2+ {[%emt 0:00:02]} 20. Rxe2 {[%emt 0:00:02]} Qe6 {[%emt 0:00:26] Hoping for ...Nd4.} 21. Bb2 {[%emt 0:00:20] Inhibits Nd4.} Bxb2 {[%emt 0:00:15]} 22. Rxb2 {[%emt 0:00:14]} Rfd8 {[%emt 0:01:31]} 23. a4 {[%emt 0:00:04]} d4 {[%emt 0:00:03]} (23... Ne5 $19 24. Rbb1 Nc4) 24. Qxe6 $17 {[%emt 0:00:13]} fxe6 {[%emt 0:00:02]} 25. b5 {[%emt 0:00:01]} axb5 {[%emt 0:00:12]} 26. axb5 {[%emt 0:00:02]} Rab8 {[%emt 0:01:04]} 27. Rfb1 {[%emt 0:00:10] [#]} d3 $1 {[%emt 0:00:40]} 28. Kf1 {[%emt 0:00:47]} (28. bxc6 $2 {is the wrong capture.} Rxb2 29. Rxb2 d2 $19) (28. f4 Na5) 28... Ne5 {[%emt 0:00:30] ...Nc4 would be deadly.} 29. Ke1 {[%emt 0:00:26]} Rd5 {[%emt 0:01:04]} 30. c6 {[%emt 0:00:20]} Rc5 {[%emt 0:00:04]} 31. Rb4 {[%emt 0:01:01]} (31. Rb3 $17 {was worth a try.}) 31... Kf7 {[%emt 0:00:43]} 32. Kd1 {[%emt 0:00:17]} (32. R4b3 {keeps fighting.}) 32... Ke7 $19 {[%emt 0:00:20]} 33. R1b2 {[%emt 0:00:45]} Nf7 {[%emt 0:00:05]} 34. Kd2 {[%emt 0:00:36]} Nd6 {[%emt 0:00:06] White must now prevent ...Nc4+.} 35. Kxd3 {[%emt 0:00:11]} Rbxb5 {[%emt 0:00:18]} ({Stronger than} 35... Rcxb5 36. Rxb5 Rxb5 37. Rxb5 Nxb5 38. Kc4 Nd6+ 39. Kc5) 36. e4 {[%emt 0:00:20]} Rxb4 {[%emt 0:00:09]} 37. Rxb4 {[%emt 0:00:01]} Rxc6 {[%emt 0:00:01][%mdl 4096] Endgame KRN-KR} 38. e5 {[%emt 0:00:01]} Ne8 {[%emt 0:00:05]} 39. f4 {[%emt 0:00:05]} Rc7 {[%emt 0:00:02]} 40. g4 {[%emt 0:00:02]} Ng7 {[%emt 0:00:04]} 41. h3 {[%emt 0:00:02]} Ra7 {[%emt 0:00:04]} 42. Rb3 {[%emt 0:00:02]} h6 {[%emt 0:00:08]} 43. Ke3 {[%emt 0:00:01]} Ne8 {[%emt 0:00:03]} 44. Kf3 {[%emt 0:00:02]} Kf7 {[%emt 0:00:02]} 45. Kg3 {[%emt 0:00:01]} Kg7 {[%emt 0:00:01]} 46. Kh4 {[%emt 0:00:02]} (46. Rd3 $142) 46... Nc7 {[%emt 0:00:08]} 47. Rb6 {[%emt 0:00:04]} Kf7 {[%emt 0:00:18]} 48. f5 {[%emt 0:00:12]} gxf5 {[%emt 0:00:07]} 49. gxf5 {[%emt 0:00:01]} Ra3 $2 {[%emt 0:00:10]} (49... exf5 $19 {...Ra6 is the strong threat.} 50. Rxh6 Ra4+ 51. Kh5 Nd5) 50. Rb7 {[%emt 0:00:04]} (50. Rc6 $15) 50... Rc3 $17 {[%emt 0:00:02]} 51. fxe6+ {[%emt 0:00:03] [#]} Kxe6 {[%emt 0:00:03]} ({Black should play} 51... Kg6 $1 52. Rb6 Rc4+ 53. Kg3 Ne8) 52. Rb6+ {[%emt 0:00:02]} Kxe5 {[%emt 0:00:03] Threatens to win with ...Ne6.} 53. Rxh6 {[%emt 0:00:01]} Ne6 {[%emt 0:00:03]} 54. Rh5+ {[%emt 0:00:08]} Kf4 {[%emt 0:00:04]} 55. Ra5 {[%emt 0:00:03]} Nd4 {[%emt 0:00:08]} 56. Ra4 {[%emt 0:00:04]} Rd3 {[%emt 0:00:08]} 57. Rb4 {[%emt 0:00:01]} Ke5 {[%emt 0:00:05]} 58. Kg4 {[%emt 0:00:04]} Rd1 {[%emt 0:00:01]} 59. Ra4 {[%emt 0:00:03]} Rg1+ {[%emt 0:00:03]} 60. Kh4 {[%emt 0:00:03]} Nf5+ {[%emt 0:00:10]} 61. Kh5 {[%emt 0:00:02]} Rh1 {[%emt 0:00:02]} 62. h4 {[%emt 0:00:07]} Rg1 {[%emt 0:00:05]} 63. Ra5+ {[%emt 0:00:02]} Kf6 {[%emt 0:00:03]} 64. Ra6+ {[%emt 0:00:02]} Kf7 {[%emt 0:00:01]} (64... Ke7 $5) 65. Rf6+ $1 {[%emt 0:00:06]} Kxf6 {[%emt 0:00:09] Whites escaped into a draw. An interesting game.   Weighted Error Value: White=0.29 (precise) /Black=0.25 (precise)} 1/2-1/2

[Event "Rapid Shavuot-A 2023"]
[Site "Ramat Gan"]
[Date "2023.05.25"]
[Round "3.14"]
[White "Kinberg, Ofer"]
[Black "Vaisman, Felix"]
[Result "1-0"]
[ECO "A59"]
[WhiteElo "1918"]
[BlackElo "2121"]
[Annotator "TA"]
[PlyCount "73"]
[EventDate "2023.05.19"]
[EventType "swiss"]
[EventCountry "ISR"]
[SourceTitle "playchess.com"]
[Source "ChessBase"]
[SourceQuality "1"]
[TimeControl "900+5"]

{[%evp 24,73,72,66,74,69,62,62,147,148,152,153,152,139,171,169,227,141,144,145,147,145,141,141,154,134,227,239,356,364,474,468,534,522,520,488,477,462,518,520,614,612,618,543,957,897,12837,5685,29989,29990,29989,29990]} 1. d4 {[%emt 0:00:03]} Nf6 {[%emt 0:00:01]} 2. c4 {[%emt 0:00:01]} c5 {[%emt 0:00:02]} 3. d5 {[%emt 0:00:02]} b5 {[%emt 0:00:01]} 4. cxb5 {[%emt 0:00:02]} a6 {[%emt 0:00:01]} 5. bxa6 {[%emt 0:00:01]} g6 {[%emt 0:00:01]} 6. Nc3 {[%emt 0:00:09]} Bxa6 {[%emt 0:00:03]} 7. e4 {[%emt 0:00:05]} Bxf1 {[%emt 0:00:03]} 8. Kxf1 {[%emt 0:00:01]} d6 {[%emt 0:00:01]} 9. g3 {[%emt 0:00:08]} Bg7 {[%emt 0:00:02]} 10. Nf3 {[%emt 0:00:02][%cal Bg1f3,Bf3d2,Bd2c4][%mdl 32]} O-O {[%emt 0:00:02]} 11. Kg2 {[%emt 0:00:01]} Nbd7 {[%emt 0:00:01]} 12. Qc2 {[%emt 0:00:12]} Qb6 {[%emt 0:00:03]} 13. a4 {[%emt 0:00:24]} Qb4 {[%emt 0:00:01] A59: Benko/Volga Gambit: White castles by hand.} 14. Ra3 {[%emt 0:01:07][%cal Ba1a3,Ba3b3,Bb3b8][%mdl 32]} Rfb8 {[%emt 0:00:04]} 15. Nd2 {[%emt 0:02:08]} Ne5 {[%emt 0:01:53] [#]} (15... c4 $14) 16. Rb3 $1 $16 {[%emt 0:02:23] [#]} Qa5 $146 {[%emt 0:00:04]} ({Predecessor:} 16... Qd4 17. Ne2 Rxb3 18. Nxd4 Rb4 19. Nc6 Nxc6 20. dxc6 Rbxa4 21. e5 Nd5 22. exd6 exd6 23. Ne4 Nb4 24. Qxa4 Rxa4 25. c7 Ra8 26. Nxd6 {1-0 Ovchinnikov,V (2248)-Dovletov,H (2137) World School-ch U17 11th 2015 (8)}) 17. Rxb8+ {[%emt 0:00:17]} Rxb8 {[%emt 0:00:01] [#]} 18. Nb5 $1 {[%emt 0:00:15]} Qb4 {[%emt 0:03:47]} 19. f4 {[%emt 0:00:33]} Neg4 {[%emt 0:00:40]} (19... Ned7 {was necessary.} 20. b3 c4) 20. Nc4 {[%emt 0:00:06] aiming for Bd2.} Nxe4 {[%emt 0:01:45]} 21. Qxe4 {[%emt 0:00:05] Threatens to win with Qc2.} Qxa4 {[%emt 0:00:02]} 22. Nc3 {[%emt 0:01:46]} Bxc3 23. bxc3 {[%emt 0:00:01]} Qa2+ {[%emt 0:03:02]} 24. Bd2 {[%emt 0:00:15]} Nf6 {[%emt 0:00:14]} (24... Ra8 $16) 25. Qd3 $18 {[%emt 0:01:16]} (25. Qxe7 $2 {is the wrong capture.} Qxc4 26. Qxf6 Qxd5+ 27. Kh3 Qxh1 $19) 25... e6 {[%emt 0:00:41]} (25... Qa8 {was called for.} 26. Ne3 Rb2) 26. dxe6 {[%emt 0:00:34]} ({Weaker is} 26. Nxd6 exd5 27. Rd1 Rb6 $16) 26... d5 {[%emt 0:00:23]} 27. exf7+ {[%emt 0:00:57]} Kxf7 {[%emt 0:00:18]} 28. Ne5+ {[%emt 0:01:26]} Kg7 {[%emt 0:00:01]} 29. Rd1 {[%emt 0:01:27][%cal Bh1d1,Bd1e1,Be1e2][%mdl 32]} Rb2 {[%emt 0:00:16]} 30. Nf3 {[%emt 0:00:32]} Qb3 {[%emt 0:00:15]} 31. Re1 {[%emt 0:00:20]} Qa2 {[%emt 0:00:52]} 32. Re2 {[%emt 0:00:33]} Ne4 {[%emt 0:00:04]} 33. Kh3 {[%emt 0:00:05][%cal Oc3c4] c4! is the strong threat.} h5 {[%emt 0:00:51] [#]} 34. c4 $1 {[%emt 0:00:03]} Qa1 {[%emt 0:01:18]} (34... Qb1 35. Qxb1) 35. Bc3+ {[%emt 0:00:12]} d4 {[%emt 0:00:09]} 36. Bxb2 {[%emt 0:00:10]} Qf1+ {[%emt 0:00:02]} 37. Kh4 {[%emt 0:00:14] Weighted Error Value: White=0.10 (very precise) /Black=0.37} 1-0

[Event "Rapid Shavuot-A 2023"]
[Site "Ramat Gan"]
[Date "2023.05.25"]
[Round "3.15"]
[White "Yaniv, Ori"]
[Black "Dezent, Eyal"]
[Result "1/2-1/2"]
[ECO "B13"]
[WhiteElo "2156"]
[BlackElo "1773"]
[Annotator "TA"]
[PlyCount "78"]
[EventDate "2023.05.19"]
[EventType "swiss"]
[EventCountry "ISR"]
[SourceTitle "playchess.com"]
[Source "ChessBase"]
[SourceQuality "1"]
[TimeControl "900+5"]

{[%evp 25,77,14,14,14,13,13,12,10,17,0,25,0,0,0,-15,-29,-13,-15,-12,-21,-31,-41,-35,-33,-17,-65,0,-43,-40,-37,-36,-70,-79,-78,0,0,0,0,0,0,0,0,0,0,0,0,0,0,0,0,0,0,0,0]} 1. e4 {[%emt 0:00:04]} c6 {[%emt 0:00:02]} 2. d4 {[%emt 0:00:02]} d5 {[%emt 0:00:01]} 3. exd5 {[%emt 0:00:04]} cxd5 {[%emt 0:00:01]} 4. Bd3 {[%emt 0:00:02]} Nc6 {[%emt 0:00:05]} 5. c3 {[%emt 0:15:18]} Nf6 {[%emt 0:00:04]} 6. Bf4 {[%emt 0:00:00]} Bg4 {[%emt 0:00:02][%cal Bc8g4,Bg4h5,Bh5g6,Bg6f5][%mdl 32]} 7. Qb3 {[%emt 0:00:00]} Qc8 {[%emt 0:00:01]} 8. Nd2 {[%emt 0:00:00]} e6 {[%emt 0:00:02]} 9. Ngf3 {[%emt 0:00:00]} Be7 {[%emt 0:00:01]} 10. O-O {[%emt 0:00:00]} O-O {[%emt 0:00:02]} 11. Rfe1 {[%emt 0:00:00]} Bh5 {[%emt 0:00:21]} 12. Ne5 {[%emt 0:00:00]} Nxe5 {[%emt 0:00:11]} 13. Bxe5 {[%emt 0:00:00]} Bg6 {[%emt 0:00:30]} 14. Be2 {[%emt 0:00:00] B13: Caro-Kann: Exchange Variation and Panov-Botvinnik Attack.} a6 {[%emt 0:00:26]} 15. a4 {[%emt 0:00:00]} Nd7 {[%emt 0:01:02]} 16. Bg3 {[%emt 0:00:00] [#]} Qc6 $146 {[%emt 0:00:11]} ({Predecessor:} 16... Nb8 17. Nf1 Nc6 18. Ne3 Kh8 19. f4 Be4 20. Qd1 a5 21. Rf1 f5 22. Rc1 Qd8 {0-1 Melkonian,A-Bregadze,L GEO-ch U16 Tbilisi 2002 (9)}) 17. h4 {[%emt 0:00:00][%cal Bh2h4,Bh4h5][%mdl 32]} h6 {[%emt 0:00:57]} 18. h5 {[%emt 0:00:00]} Bf5 {[%emt 0:00:12]} 19. c4 {[%emt 0:00:00]} Bf6 {[%emt 0:00:59]} 20. Nf3 {[%emt 0:00:00]} dxc4 {[%emt 0:00:26]} 21. Bxc4 {[%emt 0:00:00]} Be4 {[%emt 0:01:59] Hoping for ...Bxf3.} 22. Rxe4 {[%emt 0:00:00]} Qxe4 {[%emt 0:00:07]} 23. Re1 $1 {[%emt 0:00:00]} Qc6 {[%emt 0:01:52] ...Rac8 is the strong threat.} (23... Qg4 $5 {[%cal Ra8c8]} 24. Qxb7 Nc5 25. dxc5 Qxc4 $15) 24. Bxe6 $1 {[%emt 0:00:00]} Nb6 {[%emt 0:00:01] Prevents Bd5.} (24... fxe6 $2 25. Rxe6 $18) 25. a5 {[%emt 0:00:00]} (25. Bf5 $11 Qd5 26. Qc2) 25... Rae8 {[%emt 0:01:03]} (25... Rad8 $15) 26. d5 {[%emt 0:00:00]} Qb5 {[%emt 0:00:30]} 27. Qxb5 {[%emt 0:00:00]} axb5 {[%emt 0:00:02]} 28. axb6 {[%emt 0:00:00] Strongly threatening Bf5.} fxe6 {[%emt 0:00:03]} 29. Bd6 {[%emt 0:00:00] [#]} ({Much weaker is} 29. dxe6 Bxb2 30. Rb1 Bc3 31. Rxb5 Rxe6 $17) 29... exd5 {[%emt 0:00:31]} ({Better is} 29... Be7 $1 $17 {[%cal Re7d6]} 30. Bxe7 Rxe7) 30. Bxf8 $11 {[%emt 0:00:07] The position is equal.} Rxe1+ {[%emt 0:00:02]} 31. Nxe1 {[%emt 0:00:02]} Kxf8 $17 {[%emt 0:00:02][%mdl 4096] Endgame KB-KN} 32. Nd3 {[%emt 0:00:31]} Ke7 {[%emt 0:00:04]} 33. Kh2 {[%emt 0:00:59]} Bd4 {[%emt 0:00:56]} 34. Kg3 {[%emt 0:00:03]} Bxb6 {[%emt 0:00:04]} 35. Kf4 {[%emt 0:00:04]} Ke6 {[%emt 0:00:03]} 36. g4 {[%emt 0:00:27]} Bc7+ {[%emt 0:00:54]} 37. Ke3 {[%emt 0:00:13]} Bb6+ {[%emt 0:00:05]} 38. Kf4 {[%emt 0:00:01]} Bc7+ {[%emt 0:01:13]} 39. Ke3 $1 {[%emt 0:00:02]} Bb6+ {[%emt 0:03:13] Weighted Error Value: White=0.10 (very precise) /Black=0.12 (very precise)} 1/2-1/2

[Event "Rapid Shavuot-A 2023"]
[Site "Ramat Gan"]
[Date "2023.05.25"]
[Round "3.16"]
[White "Hasanov, Evyatar"]
[Black "Uritsky, Yonathan"]
[Result "0-1"]
[ECO "A39"]
[WhiteElo "1850"]
[BlackElo "2118"]
[Annotator "NA RC"]
[PlyCount "78"]
[EventDate "2023.05.19"]
[EventType "swiss"]
[EventCountry "ISR"]
[SourceTitle "playchess.com"]
[Source "ChessBase"]
[SourceQuality "1"]
[TimeControl "900+5"]

1. c4 {[%emt 0:00:04]} Nf6 {[%emt 0:00:01]} 2. g3 {[%emt 0:00:01]} g6 {[%emt 0:00:01]} 3. Bg2 {[%emt 0:00:01]} Bg7 {[%emt 0:00:01]} 4. Nc3 {[%emt 0:00:02]} c5 {[%emt 0:00:01]} 5. Nf3 {[%emt 0:00:36]} O-O {[%emt 0:00:02]} 6. O-O {[%emt 0:00:02]} Nc6 {[%emt 0:00:01]} 7. d4 {[%emt 0:00:01]} cxd4 {[%emt 0:00:02]} 8. Nxd4 {[%emt 0:00:02]} Qa5 {[%emt 0:00:02]} 9. Nxc6 {[%emt 0:02:13]} dxc6 {[%emt 0:00:01]} 10. Qc2 {[%emt 0:00:32]} Be6 {[%emt 0:00:20]} 11. b3 {[%emt 0:01:31]} Bf5 {[%emt 0:00:02]} 12. e4 {[%emt 0:02:04]} Nxe4 {[%emt 0:00:52]} 13. Nxe4 {[%emt 0:01:28]} Bxa1 {[%emt 0:00:02]} 14. Bd2 {[%emt 0:00:53]} Qe5 {[%emt 0:00:02]} 15. Bf4 {[%emt 0:01:08]} Qg7 {[%emt 0:00:07]} 16. Qc1 {[%emt 0:00:42]} Bb2 {[%emt 0:00:02]} 17. Qe3 {[%emt 0:00:06]} Qd4 {[%emt 0:00:01]} 18. Qe2 {[%emt 0:00:45]} Rfd8 {[%emt 0:00:04]} 19. Be3 {[%emt 0:00:59]} Qd3 {[%emt 0:00:12]} 20. Qxb2 {[%emt 0:00:54]} Bxe4 {[%emt 0:00:02]} 21. Bh6 {[%emt 0:00:58]} Qd4 {[%emt 0:00:01]} 22. Qe2 {[%emt 0:00:20]} Bd3 {[%emt 0:00:34]} 23. Qxe7 {[%emt 0:01:10]} Rd7 {[%emt 0:00:01]} 24. Qe1 {[%emt 0:00:24]} Bxf1 {[%emt 0:00:04]} 25. Bxf1 {[%emt 0:00:03]} Rad8 {[%emt 0:00:15]} 26. Qc1 {[%emt 0:00:04]} Re7 {[%emt 0:00:38]} 27. h4 {[%emt 0:00:08]} f6 {[%emt 0:00:09]} 28. Be3 {[%emt 0:00:06]} Qd1 {[%emt 0:00:11]} 29. Qc3 {[%emt 0:00:05]} Kf7 {[%emt 0:00:08]} 30. c5 {[%emt 0:00:04]} Kg7 {[%emt 0:00:07]} 31. h5 {[%emt 0:00:04]} Qxh5 {[%emt 0:00:20]} 32. Kg2 {[%emt 0:00:07]} Qe5 {[%emt 0:00:05]} 33. Qc1 {[%emt 0:00:06]} Qd5+ {[%emt 0:00:07]} 34. Kg1 {[%emt 0:00:03]} h5 {[%emt 0:00:06]} 35. Kh2 {[%emt 0:00:05]} Qd1 {[%emt 0:00:04]} 36. Qc4 {[%emt 0:00:03]} Rxe3 {[%emt 0:00:13]} 37. fxe3 {[%emt 0:00:05]} Rd2+ {[%emt 0:00:02]} 38. Kh3 {[%emt 0:00:05]} Qf3 {[%emt 0:00:14]} 39. a4 {[%emt 0:00:00]} Qh1# 0-1

[Event "Rapid Shavuot-A 2023"]
[Site "Ramat Gan"]
[Date "2023.05.25"]
[Round "3.17"]
[White "Andreev, Dmitri"]
[Black "Daniel, Marc D."]
[Result "0-1"]
[ECO "A60"]
[WhiteElo "2166"]
[BlackElo "1234"]
[Annotator "NA RC"]
[PlyCount "43"]
[EventDate "2023.05.19"]
[EventType "swiss"]
[EventCountry "ISR"]
[SourceTitle "playchess.com"]
[Source "ChessBase"]
[SourceQuality "1"]
[TimeControl "900+5"]

1. d4 {[%emt 0:00:06]} Nf6 {[%emt 0:00:03]} 2. c4 {[%emt 0:00:08]} e6 {[%emt 0:00:02]} 3. g3 {[%emt 0:00:05]} c5 {[%emt 0:00:58]} 4. d5 {[%emt 0:00:03]} b5 {[%emt 0:00:32]} 5. Bg2 {[%emt 0:00:37]} Bb7 {[%emt 0:00:08]} 6. Nh3 {[%emt 0:01:53]} bxc4 {[%emt 0:01:28]} 7. Nc3 {[%emt 0:00:25]} d6 {[%emt 0:01:32]} 8. O-O {[%emt 0:00:59]} Nbd7 {[%emt 0:00:16]} 9. dxe6 {[%emt 0:00:25]} fxe6 {[%emt 0:01:00]} 10. Bxb7 {[%emt 0:00:07]} Rb8 {[%emt 0:00:35]} 11. Bg2 {[%emt 0:00:13]} d5 {[%emt 0:00:25]} 12. Qc2 {[%emt 0:04:28]} Bd6 {[%emt 0:00:28]} 13. Bf4 {[%emt 0:00:27]} Qc7 {[%emt 0:00:37]} 14. Ng5 {[%emt 0:00:43]} Ke7 {[%emt 0:00:31]} 15. Bh3 {[%emt 0:01:02]} Nf8 {[%emt 0:00:40]} 16. Bxd6+ {[%emt 0:00:29]} Qxd6 {[%emt 0:00:11]} 17. Rad1 {[%emt 0:00:11]} h6 {[%emt 0:00:32]} 18. Nf3 {[%emt 0:00:19]} g5 {[%emt 0:00:20]} 19. e4 {[%emt 0:00:40]} e5 {[%emt 0:00:34]} 20. Nxd5+ {[%emt 0:00:11]} Nxd5 {[%emt 0:00:32]} 21. Rxd5 {[%emt 0:00:03]} Qf6 {[%emt 0:00:19]} 22. Rxe5+ {[%emt 0:00:03]} 0-1

[Event "Rapid Shavuot-A 2023"]
[Site "Ramat Gan"]
[Date "2023.05.25"]
[Round "3.18"]
[White "Hertz, Yaniv"]
[Black "Noy, Eyal"]
[Result "0-1"]
[ECO "B01"]
[WhiteElo "1877"]
[BlackElo "2141"]
[Annotator "NA RC"]
[PlyCount "98"]
[EventDate "2023.05.19"]
[EventType "swiss"]
[EventCountry "ISR"]
[SourceTitle "playchess.com"]
[Source "ChessBase"]
[SourceQuality "1"]
[TimeControl "900+5"]

1. e4 {[%emt 0:00:02]} d5 {[%emt 0:00:00]} 2. exd5 {[%emt 0:00:05]} Qxd5 {[%emt 0:00:01]} 3. Nc3 {[%emt 0:00:03]} Qd6 {[%emt 0:00:02]} 4. d4 {[%emt 0:00:37]} Nf6 {[%emt 0:00:02]} 5. g3 {[%emt 0:00:12]} Bg4 {[%emt 0:00:42]} 6. Qd3 {[%emt 0:01:28]} Nc6 {[%emt 0:00:05]} 7. Be3 {[%emt 0:01:58]} O-O-O {[%emt 0:00:15]} 8. f3 {[%emt 0:01:03]} Bh5 {[%emt 0:00:09]} 9. O-O-O {[%emt 0:00:05]} Bg6 {[%emt 0:00:56]} 10. Qc4 {[%emt 0:00:31]} e6 {[%emt 0:00:51]} 11. Bf4 {[%emt 0:01:14]} Qd7 {[%emt 0:00:27]} 12. h4 {[%emt 0:00:56]} Nd5 {[%emt 0:02:43]} 13. Nxd5 {[%emt 0:00:09]} exd5 {[%emt 0:00:01]} 14. Qb5 {[%emt 0:00:37]} a6 {[%emt 0:00:11]} 15. Qa4 {[%emt 0:00:14]} h5 {[%emt 0:00:07]} 16. Ne2 {[%emt 0:01:09]} Kb8 {[%emt 0:00:58]} 17. Nc3 {[%emt 0:00:07]} Be7 {[%emt 0:00:39]} 18. Bh3 {[%emt 0:00:45]} Bf5 {[%emt 0:00:07]} 19. Bxf5 {[%emt 0:00:06]} Qxf5 {[%emt 0:00:02]} 20. Rhe1 {[%emt 0:00:02]} Rhe8 {[%emt 0:00:44]} 21. Kb1 {[%emt 0:00:17]} Bxh4 {[%emt 0:01:57]} 22. Bxc7+ {[%emt 0:00:25]} Kxc7 {[%emt 0:00:01]} 23. gxh4 {[%emt 0:00:43]} Rxe1 24. Rxe1 {[%emt 0:00:01]} Qxf3 {[%emt 0:00:08]} 25. a3 {[%emt 0:01:21]} Qf2 {[%emt 0:00:08]} 26. Re2 {[%emt 0:00:30]} Qg1+ {[%emt 0:00:26]} 27. Ka2 {[%emt 0:00:11]} Qxd4 {[%emt 0:00:02]} 28. Re7+ {[%emt 0:00:08]} Rd7 {[%emt 0:00:01]} 29. Qxd4 {[%emt 0:00:31]} Nxd4 {[%emt 0:00:01]} 30. Nxd5+ {[%emt 0:00:06]} Kd6 {[%emt 0:00:01]} 31. Rxd7+ {[%emt 0:00:05]} Kxd7 {[%emt 0:00:01]} 32. Nf4 {[%emt 0:00:22]} g6 {[%emt 0:00:08]} 33. c3 {[%emt 0:00:07]} Nf3 {[%emt 0:00:27]} 34. Ng2 {[%emt 0:00:01]} f6 {[%emt 0:00:01]} 35. Kb3 {[%emt 0:00:02]} g5 {[%emt 0:00:01]} 36. Kc4 {[%emt 0:00:19]} Nxh4 {[%emt 0:00:10]} 37. Ne3 {[%emt 0:00:03]} Nf3 {[%emt 0:00:08]} 38. Kd5 {[%emt 0:00:04]} h4 {[%emt 0:00:03]} 39. Ng4 {[%emt 0:00:11]} Ke7 {[%emt 0:00:22]} 40. Ke4 {[%emt 0:00:02]} Nd2+ {[%emt 0:00:04]} 41. Kf5 {[%emt 0:00:06]} h3 {[%emt 0:00:03]} 42. Nh2 {[%emt 0:00:27]} Nc4 {[%emt 0:00:08]} 43. Kg4 {[%emt 0:00:03]} Nxb2 {[%emt 0:00:02]} 44. Kxh3 {[%emt 0:00:02]} Na4 {[%emt 0:00:09]} 45. c4 {[%emt 0:00:04]} Nb6 {[%emt 0:00:06]} 46. c5 {[%emt 0:00:09]} Nd7 {[%emt 0:00:01]} 47. Kg4 {[%emt 0:00:03]} Ke6 {[%emt 0:00:06]} 48. Nf3 {[%emt 0:00:02]} Ne5+ {[%emt 0:00:03]} 49. Nxe5 {[%emt 0:00:10]} Kxe5 {[%emt 0:00:01]} 0-1